[Event "Titled Tuesday Blitz June 13 Late 2023"]
[White "Benedetti, Julio"]
[Black "Rodriguez Santiago, Jaime"]
[WhiteFideId "172545"]
[BlackFideId "3100898"]
[WhiteElo "2263"]
[BlackElo "2025"]
[Result "1-0"]
[Round "8"]
[TimeControl "180+2"]
[Date "2023.06.13"]
[WhiteClock "0:00:06"]
[BlackClock "0:00:06"]
[Board "123"]

1. e4 {[%clk 0:03:00]}  c6 {[%clk 0:02:59]} 2. Nf3 {[%clk 0:03:00]}  d5 {[%clk 0:02:59]} 3. exd5 {[%clk 0:03:01]}  cxd5 {[%clk 0:02:59]} 4. Ne5 {[%clk 0:03:02]}  Nf6 {[%clk 0:02:53]} 5. d4 {[%clk 0:03:03]}  g6 {[%clk 0:02:41]} 6. Bd3 {[%clk 0:02:59]}  Bg7 {[%clk 0:02:41]} 7. O-O {[%clk 0:03:00]}  Bf5 {[%clk 0:02:39]} 8. Bxf5 {[%clk 0:02:58]}  gxf5 {[%clk 0:02:39]} 9. Qf3 {[%clk 0:02:59]}  e6 {[%clk 0:02:39]} 10. Bd2 {[%clk 0:02:36]}  Nbd7 {[%clk 0:02:32]} 11. Bb4 {[%clk 0:02:34]}  Nxe5 {[%clk 0:02:30]} 12. dxe5 {[%clk 0:02:35]}  Nd7 {[%clk 0:02:30]} 13. Re1 {[%clk 0:02:27]}  Bxe5 {[%clk 0:02:13]} 14. c4 {[%clk 0:02:21]}  dxc4 {[%clk 0:01:54]} 15. Nc3 {[%clk 0:02:13]}  Rb8 {[%clk 0:01:42]} 16. Rad1 {[%clk 0:02:12]}  Qc7 {[%clk 0:01:31]} 17. Nb5 {[%clk 0:01:37]}  Qc6 {[%clk 0:01:08]} 18. Nd6+ {[%clk 0:01:17]}  Bxd6 {[%clk 0:01:04]} 19. Rxe6+ {[%clk 0:01:07]}  fxe6 {[%clk 0:00:50]} 20. Qh5+ {[%clk 0:01:06]}  Kd8 {[%clk 0:00:49]} 21. Rxd6 {[%clk 0:01:01]}  Qe4 {[%clk 0:00:31]} 22. Qd1 {[%clk 0:00:59]}  Rg8 {[%clk 0:00:21]} 23. Rxd7+ {[%clk 0:00:57]}  Kc8 {[%clk 0:00:21]} 24. g3 {[%clk 0:00:47]}  Qc6 {[%clk 0:00:21]} 25. Rd6 {[%clk 0:00:40]}  Qb5 {[%clk 0:00:20]} 26. Bc3 {[%clk 0:00:31]}  b6 {[%clk 0:00:17]} 27. Rxe6 {[%clk 0:00:20]}  Rd8 {[%clk 0:00:16]} 28. Qf3 {[%clk 0:00:18]}  Qd5 {[%clk 0:00:13]} 29. Qe3 {[%clk 0:00:06]}  Kb7 {[%clk 0:00:09]} 30. Re7+ {[%clk 0:00:06]}  Ka8 {[%clk 0:00:09]} 31. h4 {[%clk 0:00:04]}  Rb7 {[%clk 0:00:08]} 32. Re5 {[%clk 0:00:04]}  Qc6 {[%clk 0:00:08]} 33. Re6 {[%clk 0:00:04]}  Rd1+ {[%clk 0:00:07]} 34. Be1 {[%clk 0:00:05]}  Qd7 {[%clk 0:00:06]} 35. Re8+ {[%clk 0:00:05]}  Rb8 {[%clk 0:00:05]} 36. Qf3+ {[%clk 0:00:05]}  Qb7 {[%clk 0:00:05]} 37. Rxb8+ {[%clk 0:00:04]}  Kxb8 {[%clk 0:00:05]} 38. Qxd1 {[%clk 0:00:05]}  Qc7 {[%clk 0:00:04]} 39. Bc3 {[%clk 0:00:05]}  b5 {[%clk 0:00:05]} 40. Bd2 {[%clk 0:00:05]}  a6 {[%clk 0:00:06]} 41. Bf4 {[%clk 0:00:05]}  Ka7 {[%clk 0:00:07]} 42. Bxc7 {[%clk 0:00:05]}  Kb7 {[%clk 0:00:07]} 43. Be5 {[%clk 0:00:05]}  Kc6 {[%clk 0:00:06]} 44. Qd6+ {[%clk 0:00:06]} 1-0


[Site "https://www.chess.com"]

[Event "Titled Tuesday Blitz June 13 Late 2023"]
[White "Golubev, Mikhail"]
[Black "Vila Dupla, Aurelio"]
[WhiteFideId "14100983"]
[BlackFideId "2203383"]
[WhiteElo "2374"]
[BlackElo "2009"]
[Result "1-0"]
[Round "8"]
[TimeControl "180+2"]
[Date "2023.06.13"]
[WhiteClock "0:00:18"]
[BlackClock "0:00:00"]
[Board "124"]

1. e4 {[%clk 0:03:00]}  c5 {[%clk 0:02:52]} 2. Ne2 {[%clk 0:03:00]}  d6 {[%clk 0:02:46]} 3. d4 {[%clk 0:03:00]}  cxd4 {[%clk 0:02:46]} 4. Nxd4 {[%clk 0:03:00]}  Nf6 {[%clk 0:02:46]} 5. Nc3 {[%clk 0:03:01]}  g6 {[%clk 0:02:43]} 6. Be3 {[%clk 0:03:00]}  Bg7 {[%clk 0:02:39]} 7. f3 {[%clk 0:03:00]}  O-O {[%clk 0:02:38]} 8. Qd2 {[%clk 0:03:00]}  Nc6 {[%clk 0:02:38]} 9. O-O-O {[%clk 0:03:00]}  d5 {[%clk 0:02:38]} 10. exd5 {[%clk 0:02:58]}  Nxd5 {[%clk 0:02:37]} 11. Nxc6 {[%clk 0:02:58]}  bxc6 {[%clk 0:02:37]} 12. Bd4 {[%clk 0:02:58]}  Nxc3 {[%clk 0:02:35]} 13. Qxc3 {[%clk 0:02:55]}  Bh6+ {[%clk 0:02:35]} 14. Be3 {[%clk 0:02:55]}  Bxe3+ {[%clk 0:02:35]} 15. Qxe3 {[%clk 0:02:55]}  Qb6 {[%clk 0:02:35]} 16. Qc3 {[%clk 0:02:50]}  Be6 {[%clk 0:02:22]} 17. h4 {[%clk 0:02:49]}  Rfd8 {[%clk 0:02:08]} 18. Bd3 {[%clk 0:02:19]}  c5 {[%clk 0:01:41]} 19. h5 {[%clk 0:02:11]}  Rd4 {[%clk 0:01:41]} 20. hxg6 {[%clk 0:02:09]}  fxg6 {[%clk 0:01:22]} 21. Rde1 {[%clk 0:01:52]}  Rad8 {[%clk 0:01:00]} 22. a3 {[%clk 0:01:37]}  Qd6 {[%clk 0:00:56]} 23. Kb1 {[%clk 0:01:27]}  Bf7 {[%clk 0:00:56]} 24. Be4 {[%clk 0:01:16]}  Qe6 {[%clk 0:00:49]} 25. b3 {[%clk 0:01:06]}  Qf6 {[%clk 0:00:45]} 26. Kb2 {[%clk 0:01:03]}  c4 {[%clk 0:00:42]} 27. b4 {[%clk 0:01:02]}  a5 {[%clk 0:00:41]} 28. b5 {[%clk 0:00:58]}  a4 {[%clk 0:00:36]} 29. Bc6 {[%clk 0:00:54]}  Qd6 {[%clk 0:00:22]} 30. Qb4 {[%clk 0:00:30]}  c3+ {[%clk 0:00:18]} 31. Qxc3 {[%clk 0:00:29]}  Rc4 {[%clk 0:00:18]} 32. Qe5 {[%clk 0:00:27]}  Qd2 {[%clk 0:00:16]} 33. Be4 {[%clk 0:00:23]}  Rdd4 {[%clk 0:00:13]} 34. Qb8+ {[%clk 0:00:20]}  Kg7 {[%clk 0:00:13]} 35. Rxh7+ {[%clk 0:00:20]}  Kf6 {[%clk 0:00:00]} 36. Qh8+ {[%clk 0:00:18]} 1-0


[Site "https://www.chess.com"]

[Event "Titled Tuesday Blitz June 13 Late 2023"]
[White "Chemin, Justo Reinaldo"]
[Black "Fernandez, Maria Florencia"]
[WhiteFideId "2101580"]
[BlackFideId "116459"]
[WhiteElo "1940"]
[BlackElo "2074"]
[Result "0-1"]
[Round "8"]
[TimeControl "180+2"]
[Date "2023.06.13"]
[WhiteClock "0:00:00"]
[BlackClock "0:00:04"]
[Board "127"]

1. d4 {[%clk 0:03:00]}  Nf6 {[%clk 0:02:54]} 2. c4 {[%clk 0:03:00]}  g6 {[%clk 0:02:54]} 3. Nc3 {[%clk 0:02:59]}  Bg7 {[%clk 0:02:55]} 4. e4 {[%clk 0:02:57]}  d6 {[%clk 0:02:55]} 5. Nge2 {[%clk 0:02:57]}  O-O {[%clk 0:02:54]} 6. Ng3 {[%clk 0:02:57]}  e5 {[%clk 0:02:54]} 7. d5 {[%clk 0:02:57]}  c6 {[%clk 0:02:50]} 8. Be2 {[%clk 0:02:57]}  cxd5 {[%clk 0:02:51]} 9. cxd5 {[%clk 0:02:57]}  Nbd7 {[%clk 0:02:51]} 10. h4 {[%clk 0:02:57]}  a5 {[%clk 0:02:48]} 11. h5 {[%clk 0:02:56]}  Nc5 {[%clk 0:02:49]} 12. hxg6 {[%clk 0:02:52]}  fxg6 {[%clk 0:02:48]} 13. Be3 {[%clk 0:02:47]}  Bd7 {[%clk 0:02:43]} 14. Qd2 {[%clk 0:02:44]}  b5 {[%clk 0:02:28]} 15. f3 {[%clk 0:02:25]}  b4 {[%clk 0:02:23]} 16. Nd1 {[%clk 0:02:23]}  Rb8 {[%clk 0:02:10]} 17. Nf2 {[%clk 0:02:16]}  Bb5 {[%clk 0:01:59]} 18. Bxc5 {[%clk 0:01:56]}  dxc5 {[%clk 0:01:56]} 19. Bxb5 {[%clk 0:01:55]}  Rxb5 {[%clk 0:01:57]} 20. Rc1 {[%clk 0:01:47]}  a4 {[%clk 0:01:37]} 21. Qd3 {[%clk 0:01:38]}  Qa5 {[%clk 0:01:33]} 22. O-O {[%clk 0:01:36]}  Bh6 {[%clk 0:01:26]} 23. Rcd1 {[%clk 0:01:18]}  b3 {[%clk 0:01:06]} 24. a3 {[%clk 0:01:14]}  Rd8 {[%clk 0:00:44]} 25. Qc4 {[%clk 0:01:13]}  Kg7 {[%clk 0:00:38]} 26. Rd3 {[%clk 0:01:02]}  Ne8 {[%clk 0:00:35]} 27. d6 {[%clk 0:00:53]}  Rxd6 {[%clk 0:00:32]} 28. Rxd6 {[%clk 0:00:52]}  Nxd6 {[%clk 0:00:33]} 29. Qe6 {[%clk 0:00:51]}  Nf7 {[%clk 0:00:29]} 30. Ng4 {[%clk 0:00:47]}  Qb6 {[%clk 0:00:22]} 31. Qe8 {[%clk 0:00:41]}  c4+ {[%clk 0:00:14]} 32. Kh2 {[%clk 0:00:35]}  Bf4 {[%clk 0:00:12]} 33. Rd1 {[%clk 0:00:30]}  Qb8 {[%clk 0:00:10]} 34. Qe6 {[%clk 0:00:28]}  Rb6 {[%clk 0:00:10]} 35. Qxc4 {[%clk 0:00:28]}  Qb7 {[%clk 0:00:04]} 36. Qxa4 {[%clk 0:00:18]}  Qe7 {[%clk 0:00:04]} 37. Kg1 {[%clk 0:00:05]}  Bxg3 {[%clk 0:00:04]} 38. Rd7 {[%clk 0:00:05]}  Qc5+ {[%clk 0:00:04]} 39. Kh1 {[%clk 0:00:00]}  Qc1+ {[%clk 0:00:04]} 0-1


[Site "https://www.chess.com"]

[Event "Titled Tuesday Blitz June 13 Late 2023"]
[White "Martinez, Ayelen"]
[Black "Topalov, Aleksandar"]
[WhiteFideId "118702"]
[BlackFideId "925659"]
[WhiteElo "2074"]
[BlackElo "2151"]
[Result "1-0"]
[Round "8"]
[TimeControl "180+2"]
[Date "2023.06.13"]
[WhiteClock "0:00:25"]
[BlackClock "0:00:00"]
[Board "128"]

1. e4 {[%clk 0:03:00]}  e6 {[%clk 0:02:37]} 2. d4 {[%clk 0:02:30]}  d5 {[%clk 0:02:36]} 3. Nc3 {[%clk 0:02:29]}  Bb4 {[%clk 0:02:35]} 4. e5 {[%clk 0:02:28]}  Qd7 {[%clk 0:02:35]} 5. a3 {[%clk 0:02:27]}  Bxc3+ {[%clk 0:02:35]} 6. bxc3 {[%clk 0:02:28]}  b6 {[%clk 0:02:35]} 7. Qg4 {[%clk 0:02:26]}  f5 {[%clk 0:02:35]} 8. Qg3 {[%clk 0:02:25]}  Qf7 {[%clk 0:02:35]} 9. Nh3 {[%clk 0:02:25]}  h6 {[%clk 0:02:34]} 10. Be2 {[%clk 0:02:20]}  g6 {[%clk 0:02:30]} 11. Nf4 {[%clk 0:02:19]}  Ne7 {[%clk 0:02:31]} 12. h4 {[%clk 0:02:19]}  Ba6 {[%clk 0:02:29]} 13. h5 {[%clk 0:02:16]}  g5 {[%clk 0:02:22]} 14. Ng6 {[%clk 0:02:17]}  Rg8 {[%clk 0:02:16]} 15. Bxg5 {[%clk 0:01:47]}  hxg5 {[%clk 0:02:15]} 16. Nxe7 {[%clk 0:01:41]}  Qxe7 {[%clk 0:02:07]} 17. c4 {[%clk 0:01:28]}  Bxc4 {[%clk 0:02:03]} 18. Bxc4 {[%clk 0:01:17]}  dxc4 {[%clk 0:02:03]} 19. h6 {[%clk 0:01:18]}  Nc6 {[%clk 0:01:55]} 20. h7 {[%clk 0:01:16]}  Rh8 {[%clk 0:01:54]} 21. Qf3 {[%clk 0:01:15]}  Kd7 {[%clk 0:01:45]} 22. d5 {[%clk 0:01:16]}  Nxe5 {[%clk 0:01:17]} 23. dxe6+ {[%clk 0:01:15]}  Kxe6 {[%clk 0:01:17]} 24. Rh6+ {[%clk 0:01:12]}  Kf7 {[%clk 0:00:48]} 25. Qxf5+ {[%clk 0:01:04]}  Kg7 {[%clk 0:00:48]} 26. Re6 {[%clk 0:01:03]}  Qxe6 {[%clk 0:00:27]} 27. Qxe6 {[%clk 0:01:02]}  Rae8 {[%clk 0:00:27]} 28. Qf5 {[%clk 0:00:55]}  Nf3+ {[%clk 0:00:24]} 29. Kf1 {[%clk 0:00:49]}  Rxh7 {[%clk 0:00:00]} 30. Qd7+ {[%clk 0:00:25]} 1-0


[Site "https://www.chess.com"]

[Event "Titled Tuesday Blitz June 13 Late 2023"]
[White "Zherebtsova, Alexandra"]
[Black "Cluke86"]
[WhiteFideId "24129518"]
[WhiteElo "2055"]
[BlackElo "2223"]
[Result "1-0"]
[Round "8"]
[TimeControl "180+2"]
[Date "2023.06.13"]
[WhiteClock "0:00:23"]
[BlackClock "0:00:00"]
[Board "129"]

1. d4 {[%clk 0:03:00]}  Nf6 {[%clk 0:02:53]} 2. Nf3 {[%clk 0:03:01]}  e6 {[%clk 0:02:51]} 3. c4 {[%clk 0:03:01]}  b6 {[%clk 0:02:50]} 4. g3 {[%clk 0:03:00]}  Bb7 {[%clk 0:02:50]} 5. Bg2 {[%clk 0:02:59]}  Be7 {[%clk 0:02:50]} 6. O-O {[%clk 0:02:59]}  O-O {[%clk 0:02:49]} 7. Nc3 {[%clk 0:02:59]}  Ne4 {[%clk 0:02:48]} 8. Qc2 {[%clk 0:02:58]}  f5 {[%clk 0:02:36]} 9. Ne5 {[%clk 0:02:39]}  d6 {[%clk 0:02:23]} 10. Nd3 {[%clk 0:02:30]}  Nd7 {[%clk 0:02:08]} 11. Nf4 {[%clk 0:02:29]}  Rf6 {[%clk 0:01:51]} 12. Nxe4 {[%clk 0:02:27]}  fxe4 {[%clk 0:01:50]} 13. Bxe4 {[%clk 0:02:27]}  Bxe4 {[%clk 0:01:44]} 14. Qxe4 {[%clk 0:02:26]}  e5 {[%clk 0:01:39]} 15. Qd5+ {[%clk 0:02:14]}  Kh8 {[%clk 0:01:33]} 16. Ne6 {[%clk 0:02:14]}  Qc8 {[%clk 0:01:19]} 17. Nxc7 {[%clk 0:02:09]}  Rb8 {[%clk 0:01:01]} 18. Nb5 {[%clk 0:02:05]}  a6 {[%clk 0:00:57]} 19. Nc3 {[%clk 0:02:03]}  exd4 {[%clk 0:00:51]} 20. Qxd4 {[%clk 0:02:02]}  Ne5 {[%clk 0:00:32]} 21. Bg5 {[%clk 0:01:36]}  Rf7 {[%clk 0:00:15]} 22. Bxe7 {[%clk 0:01:31]}  Rxe7 {[%clk 0:00:15]} 23. Nd5 {[%clk 0:01:24]}  Re6 {[%clk 0:00:13]} 24. Rac1 {[%clk 0:01:08]}  Rh6 {[%clk 0:00:11]} 25. Nf4 {[%clk 0:01:03]}  Qg4 {[%clk 0:00:07]} 26. f3 {[%clk 0:01:00]}  Qg5 {[%clk 0:00:06]} 27. Kg2 {[%clk 0:00:45]}  Rf8 {[%clk 0:00:06]} 28. e3 {[%clk 0:00:40]}  Ng6 {[%clk 0:00:04]} 29. Nxg6+ {[%clk 0:00:38]}  Qxg6 {[%clk 0:00:04]} 30. Qg4 {[%clk 0:00:32]}  Qf6 {[%clk 0:00:04]} 31. Rf2 {[%clk 0:00:30]}  Rg6 {[%clk 0:00:03]} 32. Qd4 {[%clk 0:00:29]}  h5 {[%clk 0:00:04]} 33. Qxf6 {[%clk 0:00:29]}  Rgxf6 {[%clk 0:00:04]} 34. h4 {[%clk 0:00:27]}  Re6 {[%clk 0:00:04]} 35. e4 {[%clk 0:00:27]}  Rc8 {[%clk 0:00:05]} 36. b3 {[%clk 0:00:27]}  Re5 {[%clk 0:00:05]} 37. Rd1 {[%clk 0:00:26]}  Ra5 {[%clk 0:00:06]} 38. Rxd6 {[%clk 0:00:26]}  b5 {[%clk 0:00:06]} 39. Rd5 {[%clk 0:00:24]}  Ra3 {[%clk 0:00:00]} 40. cxb5 {[%clk 0:00:23]} 1-0


[Site "https://www.chess.com"]

[Event "Titled Tuesday Blitz June 13 Late 2023"]
[White "campochess"]
[Black "Sairam, Pranav"]
[BlackFideId "30951330"]
[WhiteElo "2219"]
[BlackElo "1918"]
[Result "0-1"]
[Round "8"]
[TimeControl "180+2"]
[Date "2023.06.13"]
[WhiteClock "0:00:36"]
[BlackClock "0:00:12"]
[Board "130"]

1. d4 {[%clk 0:02:56]}  d5 {[%clk 0:02:59]} 2. Bg5 {[%clk 0:02:55]}  h6 {[%clk 0:02:54]} 3. Bh4 {[%clk 0:02:55]}  Nd7 {[%clk 0:02:48]} 4. Nd2 {[%clk 0:02:53]}  Ngf6 {[%clk 0:02:48]} 5. e3 {[%clk 0:02:52]}  e6 {[%clk 0:02:47]} 6. Bd3 {[%clk 0:02:52]}  Be7 {[%clk 0:02:47]} 7. Ngf3 {[%clk 0:02:51]}  b6 {[%clk 0:02:45]} 8. Ne5 {[%clk 0:02:47]}  Bb7 {[%clk 0:02:44]} 9. f4 {[%clk 0:02:44]}  O-O {[%clk 0:02:44]} 10. O-O {[%clk 0:02:43]}  c5 {[%clk 0:02:44]} 11. c3 {[%clk 0:02:42]}  Ne4 {[%clk 0:02:44]} 12. Bxe7 {[%clk 0:02:40]}  Qxe7 {[%clk 0:02:43]} 13. Nxe4 {[%clk 0:02:40]}  dxe4 {[%clk 0:02:42]} 14. Nxd7 {[%clk 0:02:39]}  Qxd7 {[%clk 0:02:35]} 15. Be2 {[%clk 0:02:39]}  cxd4 {[%clk 0:02:29]} 16. Qxd4 {[%clk 0:02:37]}  Qxd4 {[%clk 0:02:28]} 17. cxd4 {[%clk 0:02:37]}  Bd5 {[%clk 0:02:12]} 18. f5 {[%clk 0:02:36]}  Rac8 {[%clk 0:02:05]} 19. fxe6 {[%clk 0:02:34]}  fxe6 {[%clk 0:01:55]} 20. b3 {[%clk 0:02:33]}  Rc2 {[%clk 0:01:52]} 21. Bg4 {[%clk 0:02:26]}  Rfc8 {[%clk 0:01:42]} 22. Rf2 {[%clk 0:02:18]}  Rxf2 {[%clk 0:01:36]} 23. Kxf2 {[%clk 0:02:19]}  Rc2+ {[%clk 0:01:37]} 24. Kg3 {[%clk 0:02:19]}  Kf7 {[%clk 0:01:28]} 25. Rf1+ {[%clk 0:02:13]}  Ke7 {[%clk 0:01:28]} 26. Rf2 {[%clk 0:02:13]}  Rc3 {[%clk 0:01:24]} 27. Re2 {[%clk 0:02:02]}  Kd6 {[%clk 0:01:19]} 28. h4 {[%clk 0:02:02]}  e5 {[%clk 0:01:15]} 29. dxe5+ {[%clk 0:01:57]}  Kxe5 {[%clk 0:01:16]} 30. Bh5 {[%clk 0:01:57]}  Bc6 {[%clk 0:01:07]} 31. Bg6 {[%clk 0:01:51]}  Bb5 {[%clk 0:01:05]} 32. Re1 {[%clk 0:01:51]}  Rc2 {[%clk 0:01:00]} 33. a4 {[%clk 0:01:49]}  Bd3 {[%clk 0:00:59]} 34. Bf7 {[%clk 0:01:44]}  a5 {[%clk 0:00:54]} 35. Kh3 {[%clk 0:01:27]}  Kd6 {[%clk 0:00:48]} 36. g4 {[%clk 0:01:26]}  g5 {[%clk 0:00:46]} 37. hxg5 {[%clk 0:01:24]}  hxg5 {[%clk 0:00:46]} 38. Kg3 {[%clk 0:01:25]}  Kc5 {[%clk 0:00:44]} 39. Rh1 {[%clk 0:01:23]}  Re2 {[%clk 0:00:43]} 40. Rh5 {[%clk 0:01:22]}  Rxe3+ {[%clk 0:00:43]} 41. Kg2 {[%clk 0:01:19]}  Rf3 {[%clk 0:00:33]} 42. Rxg5+ {[%clk 0:01:17]}  Kd4 {[%clk 0:00:23]} 43. Rg8 {[%clk 0:01:03]}  Bf1+ {[%clk 0:00:20]} 44. Kg1 {[%clk 0:01:01]}  Rxf7 {[%clk 0:00:19]} 45. Rg6 {[%clk 0:01:00]}  e3 {[%clk 0:00:19]} 46. Rxb6 {[%clk 0:00:56]}  e2 {[%clk 0:00:18]} 47. Rd6+ {[%clk 0:00:56]}  Kc3 {[%clk 0:00:16]} 48. Re6 {[%clk 0:00:56]}  Kd2 {[%clk 0:00:16]} 49. Rd6+ {[%clk 0:00:54]}  Ke1 {[%clk 0:00:16]} 50. g5 {[%clk 0:00:53]}  Rg7 {[%clk 0:00:15]} 51. g6 {[%clk 0:00:53]}  Bh3 {[%clk 0:00:15]} 52. Kh2 {[%clk 0:00:49]}  Bf5 {[%clk 0:00:13]} 53. Kg2 {[%clk 0:00:45]}  Rxg6+ {[%clk 0:00:13]} 54. Kf3 {[%clk 0:00:36]}  Rxd6 {[%clk 0:00:12]} 0-1


[Site "https://www.chess.com"]

[Event "Titled Tuesday Blitz June 13 Late 2023"]
[White "Francisco_Ferrari"]
[Black "Maluco_do_Natal_00"]
[WhiteElo "2328"]
[BlackElo "2094"]
[Result "0-1"]
[Round "8"]
[TimeControl "180+2"]
[Date "2023.06.13"]
[WhiteClock "0:00:00"]
[BlackClock "0:00:01"]
[Board "131"]

1. d4 {[%clk 0:03:00]}  d5 {[%clk 0:02:59]} 2. Nf3 {[%clk 0:03:00]}  Nf6 {[%clk 0:02:59]} 3. e3 {[%clk 0:03:01]}  e6 {[%clk 0:02:57]} 4. Be2 {[%clk 0:03:01]}  c5 {[%clk 0:02:57]} 5. O-O {[%clk 0:03:01]}  Nc6 {[%clk 0:02:57]} 6. b3 {[%clk 0:03:01]}  Be7 {[%clk 0:02:46]} 7. Bb2 {[%clk 0:03:00]}  O-O {[%clk 0:02:45]} 8. Nbd2 {[%clk 0:02:59]}  cxd4 {[%clk 0:02:41]} 9. Nxd4 {[%clk 0:02:59]}  Bd7 {[%clk 0:02:35]} 10. c4 {[%clk 0:02:58]}  Rc8 {[%clk 0:02:21]} 11. N2f3 {[%clk 0:02:53]}  a6 {[%clk 0:02:08]} 12. Rc1 {[%clk 0:02:43]}  dxc4 {[%clk 0:01:28]} 13. Bxc4 {[%clk 0:02:39]}  b5 {[%clk 0:01:24]} 14. Bd3 {[%clk 0:02:18]}  Nb4 {[%clk 0:01:22]} 15. Bb1 {[%clk 0:02:10]}  Rxc1 {[%clk 0:00:52]} 16. Qxc1 {[%clk 0:02:07]}  Qb6 {[%clk 0:00:50]} 17. Ne5 {[%clk 0:01:57]}  Rd8 {[%clk 0:00:24]} 18. a3 {[%clk 0:01:44]}  Nbd5 {[%clk 0:00:23]} 19. Ndc6 {[%clk 0:01:38]}  Bxc6 {[%clk 0:00:20]} 20. Nxc6 {[%clk 0:01:38]}  Rc8 {[%clk 0:00:16]} 21. Nxe7+ {[%clk 0:01:37]}  Nxe7 {[%clk 0:00:16]} 22. Qd2 {[%clk 0:01:36]}  Ned5 {[%clk 0:00:14]} 23. e4 {[%clk 0:01:32]}  Ne7 {[%clk 0:00:12]} 24. Rc1 {[%clk 0:01:22]}  Rd8 {[%clk 0:00:09]} 25. Qg5 {[%clk 0:01:16]}  Ng6 {[%clk 0:00:09]} 26. h4 {[%clk 0:01:04]}  h6 {[%clk 0:00:09]} 27. Qg3 {[%clk 0:00:57]}  Nh5 {[%clk 0:00:07]} 28. Qf3 {[%clk 0:00:51]}  Nf6 {[%clk 0:00:03]} 29. h5 {[%clk 0:00:00]}  Nf8 {[%clk 0:00:01]} 0-1


[Site "https://www.chess.com"]

[Event "Titled Tuesday Blitz June 13 Late 2023"]
[White "Ricaurte Lopez, Juan Carlos"]
[Black "Slovineanu, Viacheslav"]
[WhiteFideId "3600327"]
[BlackFideId "13900510"]
[WhiteElo "2200"]
[BlackElo "2312"]
[Result "1-0"]
[Round "8"]
[TimeControl "180+2"]
[Date "2023.06.13"]
[WhiteClock "0:00:03"]
[BlackClock "0:00:00"]
[Board "132"]

1. e4 {[%clk 0:02:59]}  c6 {[%clk 0:02:56]} 2. d4 {[%clk 0:02:58]}  d5 {[%clk 0:02:56]} 3. exd5 {[%clk 0:02:58]}  cxd5 {[%clk 0:02:57]} 4. c4 {[%clk 0:02:58]}  Nf6 {[%clk 0:02:56]} 5. Nc3 {[%clk 0:02:57]}  e6 {[%clk 0:02:56]} 6. Nf3 {[%clk 0:02:55]}  Bb4 {[%clk 0:02:56]} 7. Bd3 {[%clk 0:02:48]}  dxc4 {[%clk 0:02:56]} 8. Bxc4 {[%clk 0:02:47]}  Bxc3+ {[%clk 0:02:56]} 9. bxc3 {[%clk 0:02:46]}  Qc7 {[%clk 0:02:57]} 10. Qd3 {[%clk 0:02:43]}  O-O {[%clk 0:02:56]} 11. O-O {[%clk 0:02:41]}  Nbd7 {[%clk 0:02:55]} 12. Ba3 {[%clk 0:02:35]}  Re8 {[%clk 0:02:53]} 13. Rac1 {[%clk 0:02:30]}  b6 {[%clk 0:02:52]} 14. Rfd1 {[%clk 0:02:21]}  Bb7 {[%clk 0:02:52]} 15. Bb3 {[%clk 0:02:11]}  Rac8 {[%clk 0:02:45]} 16. c4 {[%clk 0:02:10]}  Nf8 {[%clk 0:02:29]} 17. Ne5 {[%clk 0:02:00]}  Ng6 {[%clk 0:02:28]} 18. Nxg6 {[%clk 0:01:58]}  hxg6 {[%clk 0:02:28]} 19. d5 {[%clk 0:01:53]}  exd5 {[%clk 0:02:07]} 20. cxd5 {[%clk 0:01:48]}  Qf4 {[%clk 0:02:06]} 21. g3 {[%clk 0:01:36]}  Qf5 {[%clk 0:01:54]} 22. Qxf5 {[%clk 0:01:32]}  gxf5 {[%clk 0:01:54]} 23. d6 {[%clk 0:01:22]}  Bc6 {[%clk 0:01:41]} 24. Rxc6 {[%clk 0:01:12]}  Rxc6 {[%clk 0:01:37]} 25. Ba4 {[%clk 0:01:12]}  Rcc8 {[%clk 0:00:54]} 26. d7 {[%clk 0:01:08]}  Nxd7 {[%clk 0:00:54]} 27. Rxd7 {[%clk 0:01:07]}  Red8 {[%clk 0:00:20]} 28. Rxa7 {[%clk 0:01:05]}  Ra8 {[%clk 0:00:20]} 29. Be7 {[%clk 0:00:38]}  Rxa7 {[%clk 0:00:19]} 30. Bxd8 {[%clk 0:00:37]}  Rxa4 {[%clk 0:00:19]} 31. Bxb6 {[%clk 0:00:38]}  Rxa2 {[%clk 0:00:19]} 32. h4 {[%clk 0:00:37]}  f6 {[%clk 0:00:18]} 33. Kg2 {[%clk 0:00:36]}  Kf7 {[%clk 0:00:18]} 34. Kf3 {[%clk 0:00:36]}  g5 {[%clk 0:00:18]} 35. Bd8 {[%clk 0:00:34]}  Kg6 {[%clk 0:00:18]} 36. h5+ {[%clk 0:00:26]}  Kxh5 {[%clk 0:00:15]} 37. Bxf6 {[%clk 0:00:26]}  Kg6 {[%clk 0:00:15]} 38. Bd8 {[%clk 0:00:24]}  Ra3+ {[%clk 0:00:14]} 39. Kg2 {[%clk 0:00:23]}  Rd3 {[%clk 0:00:14]} 40. Be7 {[%clk 0:00:22]}  g4 {[%clk 0:00:12]} 41. Bc5 {[%clk 0:00:19]}  Kf6 {[%clk 0:00:12]} 42. Be3 {[%clk 0:00:20]}  Ke5 {[%clk 0:00:11]} 43. Bf4+ {[%clk 0:00:20]}  Ke4 {[%clk 0:00:11]} 44. Bc7 {[%clk 0:00:20]}  Rd2 {[%clk 0:00:11]} 45. Bb6 {[%clk 0:00:19]}  Rc2 {[%clk 0:00:11]} 46. Ba7 {[%clk 0:00:19]}  Re2 {[%clk 0:00:08]} 47. Bb6 {[%clk 0:00:19]}  Rc2 {[%clk 0:00:06]} 48. Ba7 {[%clk 0:00:18]}  Rc6 {[%clk 0:00:06]} 49. Be3 {[%clk 0:00:18]}  Ra6 {[%clk 0:00:06]} 50. Bf4 {[%clk 0:00:17]}  Ra3 {[%clk 0:00:05]} 51. Bd6 {[%clk 0:00:17]}  Rd3 {[%clk 0:00:05]} 52. Bc5 {[%clk 0:00:16]}  f4 {[%clk 0:00:04]} 53. gxf4 {[%clk 0:00:15]}  Kxf4 {[%clk 0:00:05]} 54. Be3+ {[%clk 0:00:13]}  Kf5 {[%clk 0:00:04]} 55. Kg3 {[%clk 0:00:10]}  Rd1 {[%clk 0:00:04]} 56. Kg2 {[%clk 0:00:10]}  Ke4 {[%clk 0:00:04]} 57. Bc5 {[%clk 0:00:08]}  Rd3 {[%clk 0:00:04]} 58. Bb6 {[%clk 0:00:08]}  Rf3 {[%clk 0:00:04]} 59. Bc5 {[%clk 0:00:07]}  Kf4 {[%clk 0:00:04]} 60. Bb6 {[%clk 0:00:05]}  Rd3 {[%clk 0:00:00]} 61. Ba7 {[%clk 0:00:03]} 1-0


[Site "https://www.chess.com"]